bitfinex/quotes_ETHUSD_20250604
["timestamp","ask_amount","ask_price","bid_price","bid_amount"]
[1749051798514,58.73612759,2665.6,2665.0,8.45933018]
[1749051799027,58.73612759,2665.6,2665.1,5.84105]
[1749051799217,58.73612759,2665.6,2665.3,16.0]
[1749051799421,58.73612759,2665.6,2665.3,22.31833018]
[1749051799655,58.73612759,2665.6,2665.5,39.306395]
[1749051799952,57.88431734,2665.6,2665.5,36.57384722]
[1749051800251,57.53331563,2665.6,2665.5,36.57384722]
[1749051801249,57.0840346,2665.6,2665.5,36.57384722]
[1749051801547,52.84077732,2665.6,2665.5,36.57384722]
[1749051801750,52.50536222,2665.6,2665.5,36.57384722]
[1749051802111,52.50536222,2665.6,2665.5,43.59984722]
[1749051803126,52.50536222,2665.6,2665.5,15.11522488]
[1749051803327,52.50536222,2665.6,2665.5,29.00855506]
[1749051803530,52.50536222,2665.6,2665.5,49.10280803]
[1749051803723,52.50536222,2665.6,2665.5,48.7601964]
[1749051803927,40.88096321,2665.6,2665.5,48.7601964]
[1749051804275,34.24527563,2665.6,2665.5,50.07798166]
[1749051806276,31.57263915,2665.6,2665.5,48.55073983]
[1749051806480,31.57263915,2665.6,2665.5,37.77609849]
[1749051806685,31.57263915,2665.6,2665.5,48.86392032]
[1749051806840,31.57263915,2665.6,2665.5,42.18348183]
[1749051807043,31.57263915,2665.6,2665.5,41.84092032]
[1749051807246,31.57263915,2665.6,2665.5,29.11227898]
[1749051807445,31.57263915,2665.6,2665.5,42.57627898]
[1749051807657,15.69440805,2665.6,2665.5,59.09292032]
[1749051807875,15.69440805,2665.6,2665.5,49.93708186]
[1749051808174,14.84271838,2665.6,2665.5,49.93708186]
[1749051809159,14.23443164,2665.6,2665.5,49.93708186]
[1749051810248,0.02,2665.9,2665.8,51.54151818]
[1749051810448,0.02,2665.9,2665.8,58.56251818]
[1749051810772,10.24356381,2666.0,2665.9,45.22304729]
[1749051811283,10.24356381,2666.0,2665.9,52.24304729]
[1749051812285,10.24356381,2666.0,2665.9,52.79304729]
[1749051812481,10.24356381,2666.0,2665.9,37.574598]
[1749051812695,10.24356381,2666.0,2665.9,33.819131]
[1749051812861,10.24356381,2666.0,2665.9,37.18199443]
[1749051813679,10.24356381,2666.0,2665.9,37.18099443]
[1749051813973,10.24356381,2666.0,2665.9,37.73099443]
[1749051814306,10.24356381,2666.0,2665.9,38.25415597]
[1749051815162,9.79436982,2666.0,2665.9,38.25415597]
[1749051816196,8.94278114,2666.0,2665.9,31.23515597]
[1749051816402,8.94278114,2666.0,2665.9,44.57148615]
[1749051817595,8.94278114,2666.0,2665.9,58.03248615]
[1749051818320,8.94278114,2666.0,2665.9,54.79848615]
[1749051818671,8.94278114,2666.0,2665.9,46.71148615]
[1749051819537,8.33455595,2666.0,2665.9,26.93407754]
[1749051819668,8.33455595,2666.0,2665.9,10.318251]
[1749051819867,8.33455595,2666.0,2665.9,10.317251]
[1749051820092,8.33455595,2666.0,2665.9,19.301251]
[1749051820375,8.33455595,2666.0,2665.9,26.317251]
[1749051821326,8.33455595,2666.0,2665.9,30.61832943]
[1749051821601,8.33455595,2666.0,2665.9,31.14149097]
[1749051821801,8.33455595,2666.0,2665.9,37.45982115]
[1749051822572,8.33455595,2666.0,2665.9,24.12549097]
[1749051822808,8.33455595,2666.0,2665.9,37.45882115]
[1749051824069,8.33455595,2666.0,2665.9,29.89382115]
[1749051824270,7.48296906,2666.0,2665.9,25.61958118]
[1749051824476,7.48296906,2666.0,2665.9,32.63358118]
[1749051824712,7.48296906,2666.0,2665.9,36.38465961]
[1749051825544,7.48296906,2666.0,2665.9,36.93465961]
[1749051826123,7.48296906,2666.0,2665.9,37.45782115]
[1749051826311,7.48296906,2666.0,2665.9,36.93465961]
[1749051826851,7.48296906,2666.0,2665.9,36.93365961]
[1749051827431,7.03379839,2666.0,2665.9,50.38665961]
[1749051827627,7.03379839,2666.0,2665.9,47.70483958]
[1749051827945,7.03379839,2666.0,2665.9,38.51665961]
[1749051828149,7.03379839,2666.0,2665.9,39.06665961]
[1749051829468,7.03379839,2666.0,2665.9,36.93365961]
[1749051829674,6.42555906,2666.0,2665.9,36.93365961]
[1749051830056,6.42555906,2666.0,2665.9,37.48583958]
[1749051831154,0.02700378,2666.5,2666.1,0.55]
[1749051831465,0.02700378,2666.5,2666.4,52.31833018]
[1749051831645,0.02700378,2666.5,2666.4,63.07970521]
[1749051832167,0.02700378,2666.5,2666.4,59.32933018]
[1749051832754,0.02700378,2666.5,2666.4,63.07970521]
[1749051833341,0.02700378,2666.5,2666.4,63.62970521]
[1749051833664,0.02498163,2666.6,2666.5,40.15948153]
[1749051833868,0.02498163,2666.6,2666.5,43.90971591]
[1749051834033,0.02498163,2666.6,2666.5,45.01189588]
[1749051834229,0.003369,2668.5,2666.8,4.2998125]
[1749051834429,1.6411,2668.2,2667.8,10.0667371]
[1749051834669,0.003369,2668.5,2667.9,0.55]
[1749051834832,0.003369,2668.5,2668.4,31.86078218]
[1749051835171,0.003369,2668.5,2668.4,7.16532]
[1749051835333,0.02,2668.9,2668.7,0.55]
[1749051835537,0.02,2668.9,2668.8,34.33919018]
[1749051835747,0.02,2668.9,2668.8,50.33919018]
[1749051835949,0.02,2668.9,2668.8,54.63619257]
[1749051836361,0.02,2668.9,2668.8,57.89719018]
[1749051836640,0.02,2668.9,2668.8,2.20815]
[1749051836946,0.02,2668.9,2668.8,7.008]
[1749051837151,0.02,2668.9,2668.8,35.249295]
[1749051837336,0.02,2668.9,2668.8,34.139453]
[1749051837537,0.02,2668.9,2668.8,47.592453]
[1749051837740,0.02,2668.9,2668.8,44.096396]
[1749051838353,0.02,2668.9,2668.8,30.140408]
[1749051838643,0.02,2668.9,2668.8,37.145408]
[1749051839036,0.02,2668.9,2668.8,14.139408]
[1749051839243,1.5546,2668.9,2668.8,10.218]
[1749051839672,1.5546,2668.9,2668.8,13.044226]
[1749051839940,1.5546,2668.9,2668.8,12.229226]
[1749051840165,1.5546,2668.9,2668.8,17.223]
[1749051840471,1.5546,2668.9,2666.8,1.44949735]
[1749051840472,1.5546,2668.9,2667.5,3.7488136]
[1749051840663,1.5546,2668.9,2667.7,28.023413]
[1749051840868,1.5546,2668.9,2667.7,18.023413]
[1749051841095,1.5546,2668.9,2667.6,7.005]
[1749051841096,1.5546,2668.9,2667.9,6.89939367]
[1749051841296,1.5546,2668.9,2668.8,30.0]
[1749051841441,0.02,2668.9,2668.8,53.004]
[1749051841642,0.00573684,2669.0,2668.9,49.746862]
[1749051841872,0.00573684,2669.0,2668.9,46.48867997]
[1749051842071,0.00573684,2669.0,2668.9,50.23554197]
[1749051842278,0.00573684,2669.0,2668.9,50.78554197]
[1749051842643,0.0007153,2669.0,2668.9,50.78554197]
[1749051842886,0.02,2669.9,2669.8,49.74559892]
[1749051843045,0.02,2669.9,2669.8,55.54387735]
[1749051843420,0.02,2669.9,2669.8,32.357202]
[1749051843558,0.01500092,2670.0,2669.8,16.357202]
[1749051843763,0.01500092,2670.0,2669.9,42.060262]
[1749051844084,0.01500092,2670.0,2669.9,26.60459]
[1749051844282,0.01500092,2670.0,2669.9,30.35004863]
[1749051844600,0.01500092,2670.0,2669.9,26.60459]
[1749051844903,0.01500092,2670.0,2669.9,33.144328]
[1749051845065,0.01500092,2670.0,2669.9,30.282862]
[1749051845402,0.01500092,2670.0,2669.9,27.266636]
[1749051845597,0.01500092,2670.0,2669.9,25.807863]
[1749051845785,0.01500092,2670.0,2669.9,18.807863]
[1749051845969,0.01500092,2670.0,2669.4,16.0]
[1749051846167,1.5423,2669.9,2669.5,7.0]
[1749051846474,1.5423,2669.9,2669.6,7.0]
[1749051846871,1.5423,2669.9,2669.7,2.734525]
[1749051847072,1.5423,2669.9,2669.8,10.0]
[1749051847273,1.5423,2669.9,2669.5,20.497834]
[1749051847471,1.5423,2669.9,2669.6,17.207]
[1749051847670,1.5423,2669.9,2669.6,10.209]
[1749051847883,1.5423,2669.9,2669.7,6.998]
[1749051848767,1.5423,2669.9,2669.8,10.0]
[1749051848986,1.5423,2669.9,2669.8,12.854628]
[1749051849186,1.5423,2669.9,2669.8,10.356378]
[1749051849384,1.5423,2669.9,2669.8,9.129]
[1749051849385,0.5423,2669.9,2669.8,9.129]
[1749051849793,0.5423,2669.9,2669.8,37.370571]
[1749051850600,0.01500092,2670.0,2669.8,37.370571]
[1749051850811,0.01500092,2670.0,2669.9,9.128]
[1749051851017,0.01500092,2670.0,2669.9,2.131]
[1749051852167,6.91439459,2670.0,2669.8,3.52272727]
[1749051852507,2.29193946,2669.9,2669.8,1.85612727]
[1749051853228,1.6005,2669.9,2669.8,1.85612727]
[1749051854425,0.01500092,2670.0,2669.9,7.442015]
[1749051854574,0.01500092,2670.0,2669.9,2.839345]
[1749051854904,0.01500092,2670.0,2669.9,9.835345]
[1749051855075,0.01500092,2670.0,2669.9,6.996]
[1749051855885,5.96369459,2671.0,2669.9,6.996]
[1749051856174,6.89939367,2670.7,2669.9,6.996]
[1749051856369,6.89939367,2670.3,2669.8,1.85612727]
[1749051856785,6.89939367,2670.0,2669.8,1.85612727]
[1749051856980,0.55,2670.8,2669.8,1.85612727]
[1749051857181,6.89939367,2670.4,2669.8,1.85612727]
[1749051857410,0.68993937,2670.3,2669.8,1.85612727]
[1749051857618,6.89939367,2671.0,2669.9,10.201]
[1749051857912,6.89939367,2670.7,2669.9,10.201]
[1749051858142,6.89939367,2670.7,2670.0,2.124]
[1749051858453,0.005,2671.5,2670.0,2.124]
[1749051858454,6.89939367,2670.3,2670.0,2.124]
[1749051858620,6.89939367,2670.3,2669.9,8.077]
[1749051858925,2.34903937,2670.2,2670.1,2.124]
[1749051859101,1.6591,2670.2,2670.1,2.124]
[1749051859689,1.634145,2670.2,2669.8,1.85612727]
[1749051859895,6.89939367,2671.2,2669.9,2.2046]
[1749051860091,6.90439367,2671.5,2670.1,10.335958]
[1749051860497,6.89939367,2671.2,2670.2,6.993]
[1749051860725,0.68993937,2671.1,2670.2,6.993]
[1749051861132,6.89939367,2670.9,2670.2,6.993]
[1749051861332,6.89939367,2670.9,2669.8,1.85612727]
[1749051861628,6.89939367,2670.9,2669.9,6.993]
[1749051861830,0.68993937,2671.1,2669.8,1.85612727]
[1749051861831,6.89939367,2670.3,2669.8,1.85612727]
[1749051862171,1.23993937,2671.1,2669.1,0.02]
[1749051862172,6.89939367,2670.0,2669.1,0.02]
[1749051862294,6.89939367,2669.6,2669.1,0.02]
[1749051862693,0.55,2670.1,2668.1,0.02]
[1749051862694,1.6191,2669.1,2668.1,0.02]
[1749051863021,8.51849367,2668.2,2668.1,0.02]
[1749051863219,1.6191,2668.2,2668.1,0.02]
[1749051864034,1.6191,2668.2,2667.1,0.02]
[1749051864333,8.55709367,2667.8,2667.1,0.02]
[1749051865034,1.5909,2667.7,2667.1,0.02]
[1749051865335,1.5909,2667.3,2667.1,0.02]
[1749051866133,1.5628,2668.1,2667.2,21.58025349]
[1749051866409,0.84621937,2668.1,2667.2,10.0]
[1749051866611,1.5612,2668.0,2667.3,6.993]
[1749051867116,1.5612,2668.0,2667.4,35.575836]
[1749051867318,1.5612,2668.7,2667.5,0.49428549]
[1749051867530,1.5612,2668.7,2667.8,16.641814]
[1749051867732,1.5612,2668.7,2668.0,10.0]
[1749051867918,6.89939367,2668.6,2668.1,2.125]
[1749051868118,0.84605937,2668.5,2668.1,2.125]
[1749051868331,6.89939367,2668.5,2667.6,8.079]
[1749051868516,16.0,2669.5,2667.7,2.125]
[1749051868517,1.5135,2668.0,2667.7,2.125]
[1749051869159,6.89939367,2669.0,2667.7,2.125]
[1749051869160,1.5135,2668.4,2667.8,9.119]
[1749051869452,1.5135,2668.7,2667.9,2.125]
[1749051869707,1.5135,2668.5,2667.9,2.125]
[1749051870079,1.5135,2668.5,2667.1,1.5262]
[1749051870080,1.6242,2668.1,2668.0,2.125]
[1749051870213,6.89939367,2668.1,2667.1,0.02]
[1749051870569,6.89939367,2668.1,2666.7,3.91528926]
[1749051870570,6.89939367,2667.2,2666.7,3.91528926]
[1749051870849,8.52379367,2666.8,2666.7,3.91528926]
[1749051871218,1.5081,2666.7,2665.6,4.04614325]
[1749051871416,6.89939367,2666.2,2665.6,4.04614325]
[1749051871758,0.84074937,2666.6,2665.6,4.04614325]
[1749051871759,8.40749367,2665.7,2665.6,4.04614325]
[1749051871913,1.5081,2665.7,2665.6,4.04614325]
[1749051872634,6.89939367,2666.2,2665.6,4.04614325]
[1749051873152,1.6008,2666.4,2665.6,4.04614325]
[1749051873747,8.50019367,2666.4,2665.6,4.04614325]
[1749051873951,1.6008,2666.4,2665.6,4.04614325]
[1749051874697,6.89939367,2666.2,2665.6,4.04614325]
[1749051875127,1.6008,2666.4,2665.6,4.04614325]
[1749051875128,8.50019367,2666.4,2665.6,4.04614325]
[1749051875328,1.6008,2666.4,2665.6,4.04614325]
[1749051875747,1.6008,2666.4,2665.7,15.212236]
[1749051875945,1.6008,2666.4,2665.8,16.0]
[1749051876147,1.6008,2666.4,2665.8,3.208436]
[1749051876353,1.6008,2666.4,2665.9,10.0]
[1749051876544,1.6008,2666.4,2665.7,16.0]
[1749051876744,1.6008,2666.4,2665.9,10.0]
[1749051876945,1.6008,2666.4,2665.8,2.744062]
[1749051877159,1.6008,2666.4,2665.9,10.0]
[1749051877470,1.6008,2666.4,2666.0,10.211]
[1749051879476,8.50019367,2666.4,2666.0,8.085]
[1749051879806,8.50019367,2666.4,2666.1,2.126]
[1749051880142,1.6008,2666.4,2666.1,2.126]
[1749051880886,1.6008,2666.4,2666.2,2.127]
[1749051881114,0.55,2666.3,2665.6,4.04614325]
[1749051881314,8.40489367,2665.8,2665.7,10.213]
[1749051881483,1.5055,2665.8,2665.7,10.213]
[1749051881897,8.40489367,2665.8,2665.7,10.213]
[1749051882098,1.5055,2665.8,2665.7,10.213]
[1749051882301,0.55,2665.5,2664.2,1.6521]
[1749051882515,1.5055,2665.3,2665.2,2.127]
[1749051883016,0.76508,2666.2,2665.2,2.127]
[1749051883017,8.55849367,2666.1,2665.2,2.127]
[1749051883375,1.6591,2666.1,2665.2,2.127]
[1749051883909,1.6591,2666.1,2665.3,10.0]
[1749051884112,1.6591,2666.1,2665.3,9.126]
[1749051884628,1.6591,2666.1,2665.4,2.127]
[1749051885284,1.6591,2666.1,2665.4,18.127]
[1749051885703,2.269,2667.9,2665.3,8.5193]
[1749051885704,1.5691,2666.7,2665.5,9.126]
[1749051885904,6.89939367,2666.5,2665.6,16.0]
[1749051886437,1.631,2666.4,2665.7,2.127]
[1749051887515,1.631,2666.4,2665.8,10.213]
[1749051887890,1.631,2666.4,2665.8,17.212]
[1749051888092,7.44939367,2665.9,2665.1,0.02]
[1749051888297,24.43509367,2665.4,2665.3,8.089]
[1749051888812,6.89939367,2665.4,2665.1,0.02]
[1749051889011,6.89939367,2665.5,2665.1,0.02]
[1749051889314,1.5106,2665.4,2665.1,0.02]
[1749051889879,1.5106,2665.7,2665.1,7.019]
[1749051890815,10.9166,2667.2,2665.1,7.019]
[1749051890816,1.5098,2666.2,2665.1,7.019]
[1749051891117,1.5098,2666.2,2665.3,10.0]
[1749051891326,1.5399,2667.1,2665.5,15.38431]
[1749051891476,1.5399,2666.8,2665.5,5.027196]
[1749051891805,1.5399,2666.8,2665.6,6.476047]
[1749051893104,1.5399,2666.8,2665.8,22.944023]
[1749051893306,1.5399,2666.8,2665.8,4.432243]
[1749051893530,1.5399,2666.8,2665.4,1.6083]
[1749051893531,1.5399,2666.8,2665.6,10.0]
[1749051893710,1.5399,2666.8,2665.5,13.624]
[1749051894026,1.5176,2667.1,2665.8,11.098508]
[1749051894317,1.5176,2667.1,2666.0,2.112535]
[1749051894519,1.5176,2667.1,2666.1,6.999]
[1749051895315,1.5176,2667.1,2664.1,1.46949735]
[1749051895519,0.55,2666.8,2665.2,1.5539]
[1749051895818,1.6026,2666.7,2665.4,2.212141]
[1749051896038,1.6026,2666.7,2665.5,8.03351]
[1749051896395,1.6026,2666.7,2665.6,10.0855]
[1749051896595,1.6026,2666.7,2665.6,27.210656]
[1749051896821,1.6026,2666.7,2665.7,9.603446]
[1749051897008,1.6026,2666.7,2665.8,21.145954]
[1749051897184,1.5156,2667.1,2666.1,16.0]
[1749051897395,1.5156,2667.1,2666.3,16.0]
[1749051897719,1.5156,2667.1,2666.4,3.133548]
[1749051897892,1.5156,2667.1,2666.3,16.0]
[1749051898517,1.5156,2667.1,2666.2,10.213]
[1749051898720,1.5156,2667.1,2666.3,22.998]
[1749051899021,1.5156,2667.1,2666.2,10.213]
[1749051899022,8.66561351,2667.0,2666.2,10.213]
[1749051899199,1.01812135,2666.9,2666.2,10.213]
[1749051899524,1.6009,2666.8,2666.2,10.213]
[1749051900759,1.6388,2667.7,2666.3,12.130393]
[1749051901064,1.6388,2667.7,2666.4,16.0]
[1749051901442,1.6388,2667.7,2666.6,10.0]
[1749051901641,1.5079,2667.4,2666.2,8.089]
[1749051901876,0.55,2667.3,2666.3,2.124]
[1749051902037,0.19030736,2667.6,2666.3,2.124]
[1749051902038,1.5079,2667.0,2666.3,2.124]
[1749051902653,8.66561351,2666.8,2666.4,2.124]
[1749051902867,1.5174,2666.7,2666.4,2.124]
[1749051903073,1.01830135,2666.6,2666.4,2.124]
[1749051904087,1.5206,2667.5,2666.4,2.124]
[1749051904252,1.5206,2667.5,2666.5,31.5294]
[1749051904458,1.5206,2667.5,2666.6,35.029001]
[1749051904651,1.6628,2667.9,2666.8,16.0]
[1749051904852,1.6628,2667.9,2666.9,10.6572]
[1749051905052,1.6628,2667.9,2666.9,9.121]
[1749051905564,8.66561351,2667.7,2666.9,2.124]
[1749051905765,1.6428,2667.5,2666.2,2.903246]
[1749051905969,1.6428,2667.5,2666.5,16.0]
[1749051906200,1.6428,2667.5,2666.3,9.121]
[1749051906488,1.6428,2667.5,2666.5,10.0]
[1749051906690,1.6428,2667.5,2666.4,23.850548]
[1749051907187,2.25484048,2667.5,2666.5,10.0]
[1749051907569,2.25484048,2667.5,2666.6,15.084]
[1749051907769,0.31334213,2667.4,2666.6,15.084]
[1749051908314,0.31334213,2667.4,2666.6,8.088]
[1749051908658,10.28971351,2667.3,2666.7,2.123]
[1749051908859,1.6241,2667.1,2666.7,2.123]
[1749051909561,1.6241,2667.1,2666.6,8.088]
[1749051909760,1.6241,2667.1,2666.7,2.123]
[1749051911194,0.31334213,2667.4,2666.7,2.123]
[1749051911895,7.22486321,2667.4,2666.8,2.123]
[1749051912101,2.22868632,2667.3,2666.8,2.123]
[1749051912958,2.22868632,2667.3,2665.6,30.0]
[1749051913154,2.22868632,2667.3,2665.5,30.0]
[1749051913966,2.22868632,2667.3,2665.6,6.994]
[1749051914192,2.22868632,2667.3,2665.7,30.0]
[1749051914394,1.5062,2667.3,2665.9,40.0]
[1749051914593,1.5062,2667.3,2665.8,30.0]
[1749051914870,1.5062,2667.3,2665.9,16.0]
[1749051915015,0.31334213,2667.4,2666.3,30.0]
[1749051915194,0.31334213,2667.4,2666.2,16.0]
[1749051915195,0.31334213,2667.4,2666.5,40.0]
[1749051915394,0.31334213,2667.4,2666.5,30.0]
[1749051915597,1.5038,2667.6,2666.5,30.0]
[1749051915920,1.5238,2667.9,2666.6,17.6527]
[1749051916117,0.02,2667.9,2667.2,22.91152108]
[1749051916277,0.02,2667.9,2667.5,40.0]
[1749051916473,0.02,2667.9,2667.5,16.0]
[1749051916681,0.02,2667.9,2667.8,30.0]
[1749051916936,0.00194763,2667.9,2667.8,46.0]
[1749051917282,0.02,2669.9,2668.9,3.74677143]
[1749051917480,0.02,2669.9,2669.1,46.0]
[1749051917686,0.02,2669.9,2669.5,16.0]
[1749051917986,0.02,2669.9,2669.6,15.456177]
[1749051918174,0.02,2669.9,2669.0,1.604]
[1749051918175,0.02,2669.9,2669.1,38.817451]
[1749051918382,0.02,2669.9,2669.2,22.993]
[1749051918608,0.02,2669.9,2669.4,17.435392]
[1749051918806,0.02,2669.9,2669.2,22.993]
[1749051918807,0.02,2669.9,2669.3,7.43785]
[1749051919017,0.02,2669.9,2669.2,22.993]
[1749051919018,0.02,2669.9,2669.5,10.0]
[1749051919196,0.02,2669.9,2669.6,6.99]
[1749051919409,0.02,2669.9,2669.1,16.060654]
[1749051919613,0.88634289,2669.9,2669.3,6.99]
[1749051919832,0.88634289,2669.9,2668.7,30.0]
[1749051920126,0.88634289,2669.9,2669.3,6.99]
[1749051920530,0.88634289,2669.9,2669.0,6.99]
[1749051920716,1.6481,2669.8,2668.3,16.0]
[1749051920918,8.64342887,2669.6,2668.3,5.646808]
[1749051921234,0.25344429,2669.7,2668.5,17.266241]
[1749051922401,0.25344429,2669.7,2668.6,10.0]
[1749051922600,18.213,2669.6,2668.2,5.740893]
[1749051922807,18.213,2669.6,2668.4,23.171742]
[1749051923012,2.71098732,2669.5,2668.5,10.0]
[1749051923209,2.71098732,2669.5,2668.4,2.088425]
[1749051923408,2.71098732,2669.5,2668.4,3.676375]
[1749051923699,2.71098732,2669.5,2668.7,10.0]
[1749051923906,1.663,2669.6,2668.8,10.0]
[1749051924105,1.663,2669.6,2668.5,6.713566]
[1749051924339,1.663,2669.6,2668.0,16.0]
[1749051924646,0.25344429,2669.7,2668.6,6.988]
[1749051924861,1.6227,2669.5,2668.7,12.038135]
[1749051925039,1.6227,2669.5,2668.8,9.361463]
[1749051925356,1.6227,2669.5,2668.7,21.359091]
[1749051925533,1.6227,2669.5,2668.7,19.769733]
[1749051925739,1.6227,2669.5,2668.8,10.0]
[1749051926046,1.6227,2669.5,2668.9,6.988]
[1749051926257,1.6227,2669.5,2669.0,6.988]
[1749051927409,1.6227,2669.5,2669.1,17.189]
[1749051927616,1.6227,2669.5,2669.2,2.119]
[1749051928522,1.545,2669.9,2669.2,2.119]
[1749051928925,1.545,2669.9,2669.3,20.893985]
[1749051929137,1.545,2669.9,2669.3,10.893985]
[1749051929514,0.02,2669.9,2669.3,2.080698]
[1749051929771,0.02,2669.9,2669.3,3.877302]
[1749051930433,0.02,2669.9,2669.1,15.07]
[1749051930434,0.02,2669.9,2669.1,8.082]
[1749051930631,0.02,2669.9,2669.2,9.106]
[1749051930938,0.02,2669.9,2669.4,10.0]
[1749051931138,0.02,2669.9,2669.2,9.106]
[1749051931445,0.02,2669.9,2669.4,10.0]
[1749051931809,0.02,2669.9,2669.2,2.119]
[1749051932167,1.5063,2669.8,2669.3,2.119]
[1749051934634,1.5063,2669.8,2669.4,9.103]
[1749051934924,1.5063,2669.8,2669.5,2.118]
[1749051935126,1.5063,2669.8,2667.8,3.74840083]
[1749051935127,1.5063,2669.8,2668.3,8.136102]
[1749051935341,1.5063,2669.8,2668.4,10.198]
[1749051935541,1.6139,2669.5,2668.6,10.0]
[1749051935742,1.6139,2669.5,2668.5,9.103]
[1749051936815,1.6139,2669.5,2668.7,10.0]
[1749051937121,1.6139,2669.5,2668.5,9.103]
[1749051937314,1.6139,2669.5,2668.4,8.08]
[1749051937531,1.6139,2669.5,2668.5,9.103]
[1749051937751,1.6139,2669.5,2668.4,11.312]
[1749051938049,1.6139,2669.5,2668.5,9.103]
[1749051938248,1.6139,2669.5,2668.4,11.312]
[1749051938450,1.6139,2669.5,2668.6,9.103]
[1749051939149,1.6139,2669.5,2668.7,2.05462]
[1749051939357,1.6139,2669.5,2668.8,2.05462]
[1749051939861,1.6139,2669.5,2668.9,9.103]
[1749051940028,1.6139,2669.5,2669.0,2.119]
[1749051941628,1.6139,2669.5,2669.1,9.103]
[1749051941828,1.6139,2669.5,2669.2,2.119]
[1749051944472,0.02,2669.9,2669.4,40.0]
[1749051944677,0.02,2669.9,2669.5,9.102]
[1749051944845,0.02,2669.9,2668.5,10.53436985]
[1749051945049,0.02,2669.9,2668.6,9.102]
[1749051945050,6.90165464,2669.7,2668.6,9.102]
[1749051945236,1.5636,2669.6,2668.5,13.406599]
[1749051945587,1.5636,2669.6,2668.6,9.102]
[1749051945880,1.5636,2669.6,2668.6,2.119]
[1749051946031,1.5636,2669.6,2668.7,6.982]
[1749051946234,1.5636,2669.6,2668.8,9.1]
[1749051946481,1.5636,2669.6,2669.0,19.381614]
[1749051947531,1.5636,2669.6,2669.1,8.079]
[1749051947935,0.02,2669.9,2669.1,8.079]
[1749051948172,0.02,2669.9,2669.4,2.065427]
[1749051948394,0.02,2669.9,2669.5,16.0]
[1749051948679,0.02,2669.9,2669.6,2.115]
[1749051948879,0.02,2669.9,2669.7,6.981]
[1749051950473,0.02,2669.9,2669.2,16.0]
[1749051950686,0.02,2669.9,2669.3,2.115]
[1749051950847,1.5806,2669.8,2669.3,2.115]
[1749051951166,0.85022546,2669.7,2669.3,2.115]
[1749051951973,1.5887,2669.6,2669.3,2.115]
[1749051952406,1.5887,2669.6,2669.1,15.059]
[1749051952407,8.45275464,2669.5,2669.1,8.079]
[1749051952678,0.85022546,2669.7,2669.1,8.079]
[1749051952679,9.00275464,2669.2,2669.1,8.079]
[1749051952841,9.00275464,2669.2,2669.1,10.194]
[1749051952842,9.9030301,2669.2,2669.1,10.194]
[1749051953848,9.8979301,2669.2,2669.1,10.194]
[1749051956176,2.99627546,2669.2,2669.1,10.194]
[1749051956376,1.546,2669.2,2669.1,10.194]
[1749051956978,1.546,2669.2,2669.1,8.079]
[1749051957169,1.546,2669.2,2669.1,10.195]
[1749051959571,1.5223,2669.8,2669.1,10.195]
[1749051960889,1.5223,2669.8,2669.1,8.079]
[1749051961092,1.6607,2669.3,2669.2,10.196]
[1749051961295,16.55,2669.3,2669.2,10.196]
[1749051961471,20.51546546,2669.3,2669.2,10.196]
[1749051962065,20.51546546,2669.3,2669.2,8.08]
[1749051962269,0.55,2669.0,2668.4,6.979]
[1749051962592,0.55,2668.8,2668.5,10.196]
[1749051962792,18.34516546,2669.3,2668.5,10.196]
[1749051963011,1.5229,2669.3,2668.5,2.116]
[1749051963571,1.5229,2669.3,2668.2,1.5226]
[1749051963572,0.55,2669.2,2668.2,1.5226]
[1749051963805,1.5426,2669.0,2668.3,9.094]
[1749051963984,1.5426,2669.0,2667.1,0.02]
[1749051963985,1.5426,2669.0,2668.4,9.094]
[1749051964285,1.5426,2669.0,2668.5,2.116]
[1749051966609,1.5426,2669.0,2668.5,9.094]
[1749051966778,0.55,2668.9,2668.6,2.116]
[1749051966981,0.20926,2668.8,2668.6,2.116]
[1749051967284,1.569,2668.6,2667.6,1.5978]
[1749051967484,7.11091464,2668.8,2666.1,0.02]
[1749051967485,2.119,2668.3,2667.7,8.081]
[1749051967684,2.119,2668.3,2666.9,4.8298]
[1749051967685,1.569,2667.9,2666.9,4.8298]
[1749051967902,1.569,2667.9,2667.2,10.197]
[1749051968100,0.55,2667.6,2667.2,10.197]
[1749051968410,0.55,2667.4,2667.2,8.081]
[1749051968610,1.6187,2667.5,2667.3,2.116]
[1749051969315,0.55,2667.4,2667.2,8.081]
[1749051969623,7.45165464,2667.4,2667.3,2.116]
[1749051969791,8.3586901,2667.4,2667.3,2.116]
[1749051971096,1.45703546,2667.4,2667.3,2.116]
[1749051971316,1.6187,2667.5,2667.3,2.116]
[1749051973000,0.55,2667.4,2667.3,2.116]
[1749051973398,0.55,2667.4,2667.2,8.081]
[1749051973620,1.6187,2667.5,2667.3,2.117]
[1749051974984,6.978,2668.5,2667.3,2.117]
[1749051974985,1.5713,2668.1,2667.4,6.978]
[1749051976000,8.47295464,2668.1,2667.4,6.978]
[1749051976331,1.16063759,2668.0,2667.4,6.978]
[1749051976509,0.31334213,2667.9,2667.4,6.978]
[1749051976693,0.31334213,2667.9,2667.2,8.081]
[1749051976896,0.31334213,2667.9,2667.3,9.095]
[1749051977739,0.55,2667.8,2667.3,2.117]
[1749051977905,6.90165464,2667.4,2667.3,2.117]
[1749051978092,1.6277,2667.7,2667.3,2.117]